bitfinex/quotes_BTCUSD_20241226
["timestamp","ask_amount","ask_price","bid_price","bid_amount"]
[1735222926834,0.09282674,96041.0,96040.0,0.10398632]
[1735222927256,0.1,96047.0,96040.0,0.10398632]
[1735222927465,0.1,96047.0,96041.0,0.10398632]
[1735222927673,0.03249269,96046.0,96041.0,0.10398632]
[1735222929765,0.03349269,96046.0,96041.0,0.10398632]
[1735222929978,0.03249269,96045.0,96041.0,0.10398632]
[1735222930862,0.004,96046.0,96043.0,0.20824]
[1735222931074,0.0809,96045.0,96044.0,0.10398632]
[1735222931497,0.0809,96045.0,96037.0,0.00010754]
[1735222931723,0.0482,96044.0,96038.0,0.10398632]
[1735222932807,0.1,96042.0,96037.0,0.00010754]
[1735222932951,0.02527188,96038.0,96037.0,0.00010754]
[1735222933780,0.05777231,96038.0,96037.0,0.00010754]
[1735222933978,0.06677231,96038.0,96037.0,0.00110754]
[1735222934405,0.03250043,96038.0,96037.0,0.10409386]
[1735222935177,0.09282674,96042.0,96039.0,0.023]
[1735222935380,0.09282674,96042.0,96041.0,0.023]
[1735222935603,0.09282674,96042.0,96041.0,0.10398632]
[1735222935817,0.09282674,96042.0,96041.0,0.09798632]
[1735222936026,0.09282674,96042.0,96041.0,0.09498632]
[1735222936235,0.09282674,96042.0,96041.0,0.09198632]
[1735222936449,0.1,96051.0,96041.0,0.09198632]
[1735222936450,0.35292674,96056.0,96041.0,0.09198632]
[1735222936870,0.308222,96051.0,96041.0,0.09198632]
[1735222937079,0.002,96042.0,96041.0,0.09198632]
[1735222937597,0.006,96042.0,96041.0,0.09198632]
[1735222938709,0.004,96042.0,96041.0,0.09198632]
[1735222938924,0.1,96051.0,96041.0,0.09198632]
[1735222939105,0.03250154,96050.0,96041.0,0.09298632]
[1735222939288,0.03250154,96050.0,96041.0,0.09198632]
[1735222940226,0.03650154,96050.0,96041.0,0.09198632]
[1735222940428,0.03650154,96050.0,96042.0,0.023]
[1735222940429,0.03250154,96049.0,96042.0,0.023]
[1735222940668,0.004,96050.0,96044.0,0.208237]
[1735222940879,0.004,96050.0,96046.0,0.208233]
[1735222941100,0.004,96050.0,96047.0,0.10398632]
[1735222942132,0.007,96050.0,96047.0,0.10398632]
[1735222942354,0.209226,96050.0,96042.0,0.5408]
[1735222942489,0.03250906,96049.0,96047.0,0.004]
[1735222942700,0.03250906,96048.0,96047.0,0.004]
[1735222943105,0.03250906,96049.0,96047.0,0.004]
[1735222943308,0.03250906,96049.0,96043.0,0.10398632]
[1735222943506,0.03250906,96049.0,96042.0,0.5408]
[1735222943507,0.35824,96043.0,96042.0,0.5408]
[1735222943705,0.15,96042.0,96041.0,8.56e-05]
[1735222943983,0.30540906,96042.0,96041.0,8.56e-05]
[1735222946029,0.44577938,96042.0,96041.0,8.56e-05]
[1735222946721,0.45277938,96042.0,96041.0,0.0010856]
[1735222946951,0.49956949,96042.0,96041.0,8.56e-05]
[1735222947367,0.49956949,96042.0,96041.0,0.10407192]
[1735222947812,0.45166949,96042.0,96041.0,0.10407192]
[1735222948061,0.22666949,96042.0,96041.0,0.10407192]
[1735222948292,0.23666949,96042.0,96041.0,0.10507192]
[1735222948526,0.22266949,96042.0,96041.0,0.10407192]
[1735222948763,0.21966949,96042.0,96041.0,8.56e-05]
[1735222948990,0.22866949,96042.0,96041.0,0.0010856]
[1735222949226,0.04150906,96042.0,96041.0,0.10407192]
[1735222949477,0.04550906,96042.0,96041.0,0.10407192]
[1735222949709,0.03650906,96042.0,96041.0,0.10407192]
[1735222949943,0.03850906,96042.0,96041.0,0.10407192]
[1735222950152,0.04050906,96042.0,96041.0,0.10407192]
[1735222951039,0.24875106,96042.0,96041.0,8.56e-05]
[1735222951243,0.24275106,96042.0,96041.0,8.56e-05]
[1735222951454,0.31995106,96042.0,96041.0,8.56e-05]
[1735222951676,0.46995106,96042.0,96041.0,0.0010856]
[1735222951907,0.46795106,96042.0,96041.0,0.0010856]
[1735222952143,0.46795106,96042.0,96041.0,0.0020856]
[1735222952394,0.59895106,96042.0,96041.0,8.56e-05]
[1735222952627,0.64465106,96042.0,96041.0,8.56e-05]
[1735222952861,0.64865106,96042.0,96041.0,8.56e-05]
[1735222953094,0.88460159,96042.0,96041.0,8.56e-05]
[1735222953528,0.88260159,96042.0,96041.0,8.56e-05]
[1735222953945,0.88660159,96042.0,96041.0,8.56e-05]
[1735222954597,0.89460159,96042.0,96041.0,0.0010856]
[1735222954831,0.89077279,96042.0,96041.0,0.0010856]
[1735222955040,0.89677279,96042.0,96041.0,0.0020856]
[1735222955248,0.89277279,96042.0,96041.0,0.0020856]
[1735222955522,0.89577279,96042.0,96041.0,0.0020856]
[1735222955959,0.87877279,96042.0,96041.0,8.56e-05]
[1735222956397,0.88077279,96042.0,96041.0,8.56e-05]
[1735222956810,0.87877279,96042.0,96041.0,8.56e-05]
[1735222957042,0.88077279,96042.0,96041.0,8.56e-05]
[1735222958264,0.88577279,96042.0,96041.0,8.56e-05]
[1735222958978,0.65182226,96042.0,96041.0,8.56e-05]
[1735222962974,0.65182226,96042.0,96041.0,0.2500856]
[1735222963884,0.52082226,96042.0,96041.0,0.2500856]
[1735222967369,1.04782226,96042.0,96041.0,0.2500856]
[1735222967579,1.16108326,96042.0,96041.0,0.10040601]
[1735222967991,1.04782226,96042.0,96041.0,0.10049161]
[1735222968198,2.18516426,96042.0,96041.0,0.10049161]
[1735222968409,2.18316426,96042.0,96041.0,0.10049161]
[1735222968634,2.17816426,96042.0,96041.0,0.10049161]
[1735222969054,2.18716426,96042.0,96041.0,0.10149161]
[1735222969257,2.18416426,96042.0,96041.0,0.10049161]
[1735222969469,2.18416426,96042.0,96041.0,0.10149161]
[1735222969675,2.29316426,96042.0,96041.0,0.10149161]
[1735222969883,2.29316426,96042.0,96041.0,0.10049161]
[1735222970090,2.30216426,96042.0,96041.0,0.10149161]
[1735222970303,2.82277426,96042.0,96041.0,0.10149161]
[1735222970708,0.2,96038.0,96037.0,0.00010754]
[1735222970881,4.12763738,96038.0,96037.0,0.00010754]
[1735222971801,4.19022763,96038.0,96037.0,5.4e-07]
[1735222971975,1.24769563,96038.0,96037.0,5.4e-07]
[1735222972221,1.25669563,96038.0,96037.0,5.4e-07]
[1735222972829,0.3,96028.0,96027.0,4e-07]
[1735222973151,2.12080538,96028.0,96027.0,8.5e-07]
[1735222974787,2.12580538,96028.0,96027.0,8.5e-07]
[1735222975406,2.13480538,96028.0,96027.0,8.5e-07]
[1735222976468,2.1604601,96028.0,96027.0,8.5e-07]
[1735222976880,0.80727188,96015.0,95995.0,8.57e-05]
[1735222977084,3.47474926,96015.0,96014.0,0.00060032]
[1735222977282,3.47474926,96015.0,95995.0,8.57e-05]
[1735222977283,0.736311,96010.0,96009.0,6.2e-07]
[1735222977523,1.39341638,96010.0,96009.0,6.2e-07]
[1735222979716,1.40241638,96010.0,96009.0,6.2e-07]
[1735222979930,1.09843006,96010.0,96009.0,6.2e-07]
[1735222980143,0.89570194,96010.0,96009.0,6.2e-07]
[1735222980351,0.91170194,96010.0,96009.0,6.2e-07]
[1735222980759,0.90470194,96010.0,96009.0,6.2e-07]
[1735222981196,1.09845643,96010.0,96009.0,6.2e-07]
[1735222981507,1.23045643,96010.0,96009.0,6.2e-07]
[1735222981712,1.22345643,96010.0,96009.0,6.2e-07]
[1735222981922,1.04270194,96010.0,96009.0,6.2e-07]
[1735222982416,1.05170194,96010.0,96009.0,6.2e-07]
[1735222982851,0.95170194,96010.0,96009.0,6.2e-07]
[1735222983060,0.94270194,96010.0,96009.0,6.2e-07]
[1735222983239,1.04270194,96010.0,96009.0,6.2e-07]
[1735222983489,1.05070194,96010.0,96009.0,6.2e-07]
[1735222983689,1.04270194,96010.0,96009.0,6.2e-07]
[1735222984101,1.03670194,96010.0,96009.0,6.2e-07]
[1735222984277,1.04070194,96010.0,96009.0,6.2e-07]
[1735222984526,1.04970194,96010.0,96009.0,6.2e-07]
[1735222984728,1.04570194,96010.0,96009.0,6.2e-07]
[1735222985214,1.04870194,96010.0,96009.0,6.2e-07]
[1735222985688,1.04570194,96010.0,96009.0,6.2e-07]
[1735222985934,1.03970194,96010.0,96009.0,6.2e-07]
[1735222986165,1.04470194,96010.0,96009.0,6.2e-07]
[1735222986629,1.03970194,96010.0,96009.0,6.2e-07]
[1735222986872,1.04570194,96010.0,96009.0,6.2e-07]
[1735222987109,1.03970194,96010.0,96009.0,6.2e-07]
[1735222987372,1.03670194,96010.0,96009.0,6.2e-07]
[1735222987638,1.05070194,96010.0,96009.0,6.2e-07]
[1735222987846,1.04170194,96010.0,96009.0,6.2e-07]
[1735222988263,1.03670194,96010.0,96009.0,6.2e-07]
[1735222988492,1.04070194,96010.0,96009.0,6.2e-07]
[1735222988947,1.04570194,96010.0,96009.0,6.2e-07]
[1735222989435,1.03670194,96010.0,96009.0,6.2e-07]
[1735222989669,1.04370194,96010.0,96009.0,6.2e-07]
[1735222989910,1.04770194,96010.0,96009.0,6.2e-07]
[1735222990151,1.05470194,96010.0,96009.0,6.2e-07]
[1735222990380,1.04070194,96010.0,96009.0,6.2e-07]
[1735222990847,1.04970194,96010.0,96009.0,6.2e-07]
[1735222991091,1.04570194,96010.0,96009.0,6.2e-07]
[1735222991354,1.04570194,96010.0,96009.0,8.622e-05]
[1735222991546,1.05287314,96010.0,96009.0,8.622e-05]
[1735222991764,1.02287314,96010.0,96009.0,8.622e-05]
[1735222992003,1.00687314,96010.0,96009.0,8.622e-05]
[1735222992184,1.01087314,96010.0,96009.0,8.622e-05]
[1735222992399,1.01787314,96010.0,96009.0,8.622e-05]
[1735223002341,1.36016814,96010.0,96009.0,8.622e-05]
[1735223002518,1.27460614,96010.0,96009.0,8.622e-05]
[1735223002994,1.26760614,96010.0,96009.0,8.622e-05]
[1735223003440,1.26760614,96010.0,96009.0,3.688e-05]
[1735223003667,1.45029249,96010.0,96009.0,3.688e-05]
[1735223003925,1.46629249,96010.0,96009.0,3.688e-05]
[1735223004123,1.58669249,96010.0,96009.0,3.688e-05]
[1735223004361,1.78367881,96010.0,96009.0,3.688e-05]
[1735223004582,1.71332764,96010.0,96009.0,3.688e-05]
[1735223004821,1.71832764,96010.0,96009.0,3.688e-05]
[1735223005268,1.71332764,96010.0,96009.0,3.688e-05]
[1735223005510,1.72932764,96010.0,96009.0,3.688e-05]
[1735223005751,1.70399246,96010.0,96009.0,3.688e-05]
[1735223005977,1.71299246,96010.0,96009.0,3.688e-05]
[1735223006702,1.70399246,96010.0,96009.0,3.688e-05]
[1735223007150,1.82269246,96010.0,96009.0,3.688e-05]
[1735223007384,0.787731,96001.0,96000.0,1.78530907]
[1735223007624,3.47596338,96001.0,96000.0,1.78530907]
[1735223007851,3.41510238,96001.0,96000.0,1.72281007]
[1735223008100,2.52698438,96001.0,96000.0,1.72281007]
[1735223008351,2.43099806,96001.0,96000.0,1.72281007]
[1735223008591,2.34786932,96001.0,96000.0,1.72281007]
[1735223008826,2.44786932,96001.0,96000.0,1.72281007]
[1735223009328,2.64398438,96001.0,96000.0,1.61864507]
[1735223009560,2.66085564,96001.0,96000.0,1.57697907]
[1735223009786,2.66085564,96001.0,96000.0,1.53531307]
[1735223010515,2.64398438,96001.0,96000.0,1.49364707]
[1735223010739,2.35183638,96001.0,96000.0,1.43114807]
[1735223010947,3.85751538,96001.0,96000.0,1.43114807]
[1735223012238,4.03934729,96001.0,96000.0,1.32698307]
[1735223012442,4.03934729,96001.0,96000.0,1.2534884]
[1735223012824,4.05613256,96001.0,96000.0,1.0920564]
[1735223013020,4.10011926,96001.0,96000.0,0.8358564]
[1735223013222,4.10011926,96001.0,96000.0,0.7077564]
[1735223013223,4.27713201,96001.0,96000.0,0.7077564]
[1735223013493,4.21363201,96001.0,96000.0,0.6105904]
[1735223013626,4.22263201,96001.0,96000.0,0.5480914]
[1735223014037,4.23163201,96001.0,96000.0,0.5480914]
[1735223014533,4.22263201,96001.0,96000.0,0.48740643]
[1735223014693,3.95088926,96001.0,96000.0,0.42489843]
[1735223014864,3.95088926,96001.0,96000.0,0.40406143]
[1735223015046,3.95088926,96001.0,96000.0,0.40414703]
[1735223015249,3.93306046,96001.0,96000.0,0.40414703]
[1735223015454,3.94206046,96001.0,96000.0,0.36247303]
[1735223015656,3.9724427,96001.0,96000.0,0.29996103]
[1735223015886,3.9634427,96001.0,96000.0,0.24117817]
[1735223016287,3.9724427,96001.0,96000.0,0.24117817]
[1735223016484,3.94665743,96001.0,96000.0,0.19950217]
[1735223016912,3.95565743,96001.0,96000.0,0.15782617]
[1735223017313,3.94665743,96001.0,96000.0,0.13698817]
[1735223017511,3.95565743,96001.0,96000.0,0.07447417]
[1735223017718,3.96465743,96001.0,96000.0,0.01001764]
[1735223017941,3.96465743,96001.0,96000.0,0.00165683]
[1735223018321,3.95565743,96001.0,96000.0,0.00165683]
[1735223018537,0.77527188,95981.0,95980.0,3e-08]
[1735223018748,3.26257726,95981.0,95980.0,3e-08]
[1735223018951,3.31160917,95981.0,95980.0,3e-08]
[1735223019597,3.31160917,95981.0,95962.0,3e-08]
[1735223019598,0.47527188,95963.0,95962.0,3e-08]
[1735223019811,1.34079026,95963.0,95962.0,3e-08]
[1735223021281,1.34979026,95963.0,95962.0,3e-08]
[1735223021709,1.34079026,95963.0,95962.0,3e-08]
[1735223022131,1.14979026,95963.0,95962.0,3e-08]
[1735223022340,1.25879026,95963.0,95962.0,3e-08]
[1735223022548,0.48370688,95953.0,95952.0,8.58e-05]
[1735223022761,2.22731688,95953.0,95952.0,0.1252858]
[1735223023386,2.8299592,95953.0,95952.0,0.1252858]
[1735223023597,2.8100642,95953.0,95952.0,0.1252858]
[1735223023803,2.54815449,95953.0,95952.0,0.1252858]
[1735223024010,2.48182749,95953.0,95952.0,0.1252858]
[1735223024428,2.40599149,95953.0,95952.0,0.1252858]
[1735223024635,2.37360588,95953.0,95952.0,0.1252858]
[1735223025583,2.10960588,95953.0,95952.0,0.0783858]
[1735223025997,2.2135922,95953.0,95952.0,0.0783858]
[1735223026251,2.2459644,95953.0,95952.0,8.58e-05]
[1735223026398,2.78930841,95953.0,95952.0,8.58e-05]
[1735223027516,2.7729644,95953.0,95952.0,8.58e-05]
[1735223027738,2.65519508,95953.0,95952.0,8.58e-05]
[1735223030381,2.65937208,95953.0,95952.0,8.58e-05]
[1735223032670,2.54286608,95953.0,95952.0,8.58e-05]
[1735223032980,2.77225008,95953.0,95952.0,8.58e-05]
[1735223033581,2.73868908,95953.0,95952.0,8.58e-05]
[1735223033829,2.82341308,95953.0,95952.0,8.58e-05]
[1735223040363,2.18025408,95953.0,95952.0,0.1246858]
[1735223040627,1.89451,95953.0,95952.0,0.22867212]
[1735223040826,1.58241,95953.0,95952.0,0.25167212]
[1735223041200,1.68241,95953.0,95952.0,0.1246858]
[1735223041406,1.72681,95953.0,95952.0,0.22867212]
[1735223041607,1.72181,95953.0,95952.0,0.22867212]
[1735223042660,1.71781,95953.0,95952.0,0.22867212]
[1735223043014,1.71881,95953.0,95952.0,0.22867212]
[1735223043589,1.72181,95953.0,95952.0,0.22867212]
[1735223044006,1.71881,95953.0,95952.0,0.22867212]
[1735223044222,1.71981,95953.0,95952.0,0.22867212]
[1735223045148,2.33860857,95953.0,95952.0,8.58e-05]
[1735223045500,2.31405957,95953.0,95952.0,8.58e-05]
[1735223046217,2.31305957,95953.0,95952.0,8.58e-05]
[1735223046419,2.21124357,95953.0,95952.0,8.58e-05]
[1735223046747,2.18604357,95953.0,95952.0,8.58e-05]
[1735223046953,2.19004357,95953.0,95952.0,8.58e-05]
[1735223047157,2.01232357,95953.0,95952.0,8.58e-05]
[1735223047360,2.00832357,95953.0,95952.0,8.58e-05]
[1735223047519,2.20233657,95953.0,95952.0,8.58e-05]
[1735223047722,2.20633657,95953.0,95952.0,8.58e-05]
[1735223048337,2.01232357,95953.0,95952.0,8.58e-05]
[1735223049131,2.01232357,95953.0,95952.0,0.0767858]
[1735223049346,2.01232357,95953.0,95952.0,0.1263858]
[1735223051212,1.76232357,95953.0,95952.0,0.1263858]
[1735223051419,1.76232357,95953.0,95952.0,0.23037212]
[1735223051843,1.72981,95953.0,95952.0,0.23037212]
[1735223052484,1.7219814,95953.0,95952.0,0.23037212]
[1735223052895,1.7249814,95953.0,95952.0,0.25337212]
[1735223053263,1.7209814,95953.0,95952.0,0.25337212]
[1735223053473,0.9241814,95953.0,95952.0,0.25337212]
[1735223053685,0.6741814,95953.0,95952.0,0.39834634]
[1735223053917,0.2908814,95953.0,95952.0,0.89417212]
[1735223054262,0.0001714,95980.0,95963.0,0.1]
[1735223054465,0.0001714,95980.0,95970.0,0.023]
[1735223054466,0.1514,95979.0,95970.0,0.023]
[1735223054757,0.1514,95979.0,95971.0,0.10398632]
[1735223054968,0.1514,95979.0,95972.0,0.023]
[1735223055173,0.1514,95979.0,95973.0,0.10398632]
[1735223055411,0.15,95977.0,95973.0,0.10398632]
[1735223055592,0.15,95975.0,95973.0,0.10398632]
[1735223056052,0.15,95975.0,95973.0,0.31237532]
[1735223056692,0.15,95978.0,95973.0,0.31337532]
[1735223056872,0.15,95978.0,95973.0,0.32963668]
[1735223057085,0.15,95978.0,95973.0,0.32863668]
[1735223057289,0.15,95978.0,95974.0,0.023]
[1735223057506,0.15,95978.0,95975.0,0.10398632]
[1735223058060,0.1514,95979.0,95976.0,0.231384]
[1735223058266,0.001,95978.0,95977.0,0.10398632]
[1735223059615,0.001,95978.0,95977.0,0.10498632]
[1735223059845,0.001,95978.0,95977.0,0.10398632]
[1735223060038,0.14995965,95979.0,95977.0,0.10398632]
[1735223060249,0.001,95978.0,95977.0,0.332383]
[1735223060464,0.001,95978.0,95977.0,0.45836932]
[1735223060670,0.14995965,95979.0,95978.0,0.123]
[1735223060877,0.14995965,95979.0,95978.0,0.22698632]
[1735223061086,0.14995965,95979.0,95978.0,0.22598632]
[1735223061294,0.14995965,95979.0,95978.0,0.76678632]
[1735223061496,0.14995965,95979.0,95978.0,0.87077264]
[1735223061706,0.14995965,95979.0,95978.0,0.76578632]
[1735223063246,0.0001714,95980.0,95978.0,0.76578632]
[1735223063247,0.0001714,95980.0,95979.0,0.1]
[1735223063472,0.0001712,96001.0,95995.0,0.1]
[1735223063748,0.0001712,96001.0,95996.0,0.64582785]
[1735223063960,0.0001712,96001.0,95999.0,0.023]
[1735223064182,0.0001712,96001.0,96000.0,0.12698632]
[1735223064445,0.0001712,96001.0,96000.0,0.12802785]
[1735223064706,0.0001712,96001.0,96000.0,0.77281417]
[1735223064918,0.0001712,96001.0,96000.0,0.77177264]
[1735223065403,0.0001712,96001.0,96000.0,0.64478632]
[1735223065653,0.2333,95997.0,95996.0,0.001]
[1735223065908,1.88736972,95997.0,95996.0,0.001]
[1735223066136,1.41733,95997.0,95996.0,0.001]
[1735223066373,0.208374,95981.0,95972.0,8.57e-05]
[1735223066604,0.29995965,95980.0,95972.0,8.57e-05]
[1735223066843,0.55485965,95980.0,95972.0,8.57e-05]
[1735223067066,0.5872393,95980.0,95972.0,8.57e-05]
[1735223068977,0.5962393,95980.0,95972.0,8.57e-05]
[1735223069402,0.5872393,95980.0,95972.0,8.57e-05]
[1735223069613,0.5962393,95980.0,95972.0,8.57e-05]
[1735223069818,0.6022393,95980.0,95972.0,8.57e-05]
[1735223070260,0.6052393,95980.0,95972.0,8.57e-05]
[1735223070793,0.6102393,95980.0,95972.0,8.57e-05]
[1735223071033,1.84284134,95980.0,95972.0,8.57e-05]
[1735223071269,0.50756288,95973.0,95972.0,0.00015541]
[1735223071504,3.52139585,95973.0,95972.0,0.00015541]
[1735223071762,2.99282157,95973.0,95972.0,0.00015541]
[1735223072043,2.92846257,95973.0,95972.0,0.00015541]
[1735223072246,2.59062257,95973.0,95972.0,0.00015541]
[1735223072481,2.53933057,95973.0,95972.0,0.00015541]
[1735223072725,2.49238457,95973.0,95972.0,0.00015541]
[1735223072965,2.05492357,95973.0,95972.0,0.00015541]
[1735223073208,2.04592357,95973.0,95972.0,0.00015541]
[1735223073451,1.66874253,95973.0,95972.0,0.00015541]
[1735223073688,1.68474253,95973.0,95972.0,0.00015541]
[1735223073931,1.67574253,95973.0,95972.0,0.00015541]
[1735223074156,1.66874253,95973.0,95972.0,0.00015541]
[1735223074373,1.67774253,95973.0,95972.0,0.00015541]
[1735223075123,1.68674253,95973.0,95972.0,0.00015541]
[1735223076174,1.69274253,95973.0,95972.0,0.00015541]
[1735223078038,1.69291373,95973.0,95972.0,0.00015541]
[1735223079659,2.04316673,95973.0,95972.0,0.00015541]
[1735223079864,2.06882145,95973.0,95972.0,0.00015541]
[1735223080481,2.06282145,95973.0,95972.0,0.00015541]
[1735223080868,2.06982145,95973.0,95972.0,0.00015541]
[1735223081375,2.05182145,95973.0,95972.0,0.00015541]
[1735223081737,2.06082145,95973.0,95972.0,0.00015541]
[1735223082164,2.06982145,95973.0,95972.0,0.00015541]
[1735223082753,2.06282145,95973.0,95972.0,0.00015541]
[1735223082957,2.06982145,95973.0,95972.0,0.00015541]
[1735223083581,2.06282145,95973.0,95972.0,0.00015541]
[1735223083857,2.06982145,95973.0,95972.0,0.00015541]
[1735223084068,2.59080145,95973.0,95972.0,0.00015541]
[1735223084527,2.45191073,95973.0,95972.0,0.00015541]
[1735223084725,1.96489373,95973.0,95972.0,0.00015541]
[1735223084924,1.94099373,95973.0,95972.0,0.00015541]
[1735223085133,1.92299373,95973.0,95972.0,0.00015541]
[1735223085326,1.93199373,95973.0,95972.0,0.00015541]
[1735223085579,1.89061408,95973.0,95972.0,0.00015541]
[1735223086027,1.97104833,95973.0,95972.0,0.00015541]
[1735223086262,1.5119512,95973.0,95972.0,0.10414173]
[1735223086488,1.3289512,95973.0,95972.0,0.10414173]
[1735223086683,1.3199512,95973.0,95972.0,0.10414173]
[1735223087124,1.3229512,95973.0,95972.0,0.10414173]
[1735223087418,0.6601512,95973.0,95972.0,0.12714173]
[1735223087659,0.5291512,95973.0,95972.0,0.22818357]
[1735223087891,0.5291512,95973.0,95972.0,0.76794173]
[1735223088124,0.5241512,95973.0,95972.0,0.76794173]
[1735223088375,0.5241512,95973.0,95972.0,0.87192805]
[1735223088617,0.5251512,95973.0,95972.0,0.76794173]
[1735223088848,0.5241512,95973.0,95972.0,0.76794173]
[1735223089349,0.5251512,95973.0,95972.0,0.76794173]
[1735223089601,0.5221512,95973.0,95972.0,0.76794173]
[1735223089855,0.5231512,95973.0,95972.0,0.76794173]
[1735223090112,0.5231512,95973.0,95972.0,0.78838598]
[1735223090361,0.5221512,95973.0,95972.0,0.78838598]
[1735223090601,0.5231512,95973.0,95972.0,0.78938598]
[1735223090838,0.5221512,95973.0,95972.0,0.78938598]
[1735223091310,0.5231512,95973.0,95972.0,0.78938598]
[1735223091782,0.5241512,95973.0,95972.0,0.78938598]
[1735223091984,0.5231512,95973.0,95972.0,0.78838598]
[1735223092464,0.5231512,95973.0,95972.0,0.78938598]
[1735223092712,0.5231512,95973.0,95972.0,0.68938598]
[1735223092950,0.6731512,95973.0,95972.0,0.54195541]
[1735223093190,0.7731512,95973.0,95972.0,0.54195541]
[1735223093630,0.7731512,95973.0,95972.0,0.54095541]
[1735223093832,0.7711512,95973.0,95972.0,0.54195541]
[1735223094264,0.7721512,95973.0,95972.0,0.54195541]
[1735223094467,0.7711512,95973.0,95972.0,0.54195541]
[1735223094722,0.9845422,95973.0,95972.0,0.54195541]
[1735223094940,0.9845422,95973.0,95972.0,0.00115541]
[1735223095141,0.9795422,95973.0,95972.0,0.00115541]
[1735223095367,0.9825422,95973.0,95972.0,0.00115541]
[1735223095684,0.9825422,95973.0,95972.0,0.00015541]
[1735223096095,0.9855422,95973.0,95972.0,0.00015541]
[1735223096528,0.9825422,95973.0,95972.0,0.00015541]
[1735223096744,1.28250384,95973.0,95972.0,0.00015541]
[1735223097365,1.12865284,95973.0,95972.0,0.00015541]
[1735223097580,1.24368584,95973.0,95972.0,0.00015541]
[1735223097990,1.20547484,95973.0,95972.0,0.00015541]
[1735223098191,1.20347484,95973.0,95972.0,0.00015541]
[1735223098704,1.21447484,95973.0,95972.0,0.00015541]
[1735223098905,1.27467484,95973.0,95972.0,0.00015541]
[1735223099118,1.28067484,95973.0,95972.0,0.00015541]
[1735223099332,1.09817484,95973.0,95972.0,0.00015541]
[1735223099579,1.10517484,95973.0,95972.0,0.00015541]
[1735223100076,1.20245284,95973.0,95972.0,0.00015541]
[1735223100344,1.20745284,95973.0,95972.0,0.00015541]
[1735223100601,1.20745284,95973.0,95972.0,0.10414173]
[1735223100602,0.70858384,95973.0,95972.0,0.10414173]
[1735223100841,0.71758384,95973.0,95972.0,0.10414173]
[1735223101074,0.71758384,95973.0,95959.0,0.00104192]
[1735223101075,0.15,95971.0,95959.0,0.02404192]
[1735223101314,0.15,95971.0,95962.0,0.208415]
[1735223101562,0.41585827,95972.0,95966.0,0.1]
[1735223101765,0.41585827,95972.0,95970.0,0.023]
[1735223101972,0.41585827,95972.0,95962.0,0.208415]
[1735223102178,0.41585827,95972.0,95963.0,0.10502825]
[1735223102415,0.41585827,95972.0,95964.0,0.1]
[1735223102611,0.41585827,95972.0,95971.0,0.228396]
[1735223102805,0.41585827,95972.0,95971.0,0.33238232]
[1735223103012,0.41585827,95972.0,95971.0,0.12698632]
[1735223103256,0.41585827,95972.0,95971.0,0.22698632]
[1735223103442,0.41785827,95972.0,95971.0,0.22698632]
[1735223103610,0.41785827,95972.0,95971.0,0.22098632]
[1735223104182,0.41885827,95972.0,95971.0,0.22098632]
[1735223104589,0.41685827,95972.0,95971.0,0.22098632]
[1735223105065,0.41685827,95972.0,95971.0,0.22298632]
[1735223107139,0.41685827,95972.0,95971.0,0.76378632]
[1735223107866,0.41685827,95972.0,95971.0,1.10814486]
[1735223108087,0.39555827,95972.0,95971.0,1.10814486]
[1735223108737,0.39555827,95972.0,95971.0,1.10614486]
[1735223108945,0.39555827,95972.0,95971.0,1.10814486]
[1735223109376,0.39555827,95972.0,95971.0,1.10614486]
[1735223110042,0.39455827,95972.0,95971.0,1.10614486]
[1735223110464,0.39455827,95972.0,95971.0,1.00614486]
[1735223110673,0.39555827,95972.0,95971.0,0.77008632]
[1735223110882,0.39555827,95972.0,95971.0,0.75778632]
[1735223110883,0.39655827,95972.0,95971.0,0.75778632]
[1735223111105,0.39555827,95972.0,95971.0,0.77178632]
[1735223111341,0.39555827,95972.0,95971.0,0.87678632]
[1735223111554,0.39655827,95972.0,95971.0,0.77378632]
[1735223111991,0.39655827,95972.0,95971.0,0.77678632]
[1735223112376,0.39755827,95972.0,95971.0,0.78178632]
[1735223112525,0.39772947,95972.0,95971.0,0.78178632]
[1735223113308,0.39572947,95972.0,95971.0,0.77278632]
[1735223113461,0.39672947,95972.0,95971.0,0.77978632]
[1735223113669,0.39672947,95972.0,95971.0,0.77278632]
[1735223114069,0.39772947,95972.0,95971.0,0.78178632]
[1735223115931,0.0021712,95972.0,95971.0,0.78178632]
[1735223116073,0.37808067,95973.0,95972.0,0.872194]
[1735223116277,0.37808067,95973.0,95972.0,0.97618032]
[1735223117079,0.37908067,95973.0,95972.0,0.98518032]
[1735223117747,0.16730402,95973.0,95972.0,0.98418032]
[1735223117949,0.16730402,95973.0,95972.0,1.08816664]
[1735223118598,0.16730402,95973.0,95972.0,1.18816664]
[1735223119530,0.12854431,95973.0,95972.0,1.33816664]
[1735223119738,0.0498,96017.0,95972.0,1.33816664]
[1735223119944,0.14995965,96015.0,96000.0,0.43031932]
[1735223120157,0.14995965,96015.0,96000.0,1.16811985]
[1735223120791,0.09769699,96025.0,96000.0,1.16811985]
[1735223121196,0.09769699,96025.0,96000.0,1.16827463]
[1735223121421,0.0011712,96001.0,96000.0,1.17627463]
[1735223121824,0.0001712,96001.0,96000.0,1.16827463]
[1735223122403,0.0011712,96001.0,96000.0,1.17327463]
[1735223123364,2e-07,96001.0,96000.0,1.32327463]
[1735223123573,0.0010002,96001.0,96000.0,1.33227463]
[1735223124025,0.001,96001.0,96000.0,1.32727463]
[1735223124231,0.0811,96038.0,96037.0,0.5636288]
[1735223124453,0.0811,96038.0,96037.0,0.7543047]
[1735223125108,0.0811,96038.0,96037.0,0.66761512]
[1735223125506,0.08515146,96038.0,96037.0,0.64461512]
[1735223125715,0.42142118,96038.0,96037.0,0.4125288]
[1735223125913,0.29255146,96038.0,96037.0,0.4125288]
[1735223126116,0.43238846,96038.0,96037.0,0.4125288]
[1735223126761,0.42838846,96038.0,96037.0,0.4125288]
[1735223127271,0.28455146,96038.0,96037.0,0.4125288]
[1735223127519,0.28655146,96038.0,96037.0,0.4125288]
[1735223127748,0.29155146,96038.0,96037.0,0.4135288]
[1735223127993,0.29155146,96038.0,96010.0,0.208311]
[1735223127994,0.358253,96037.0,96020.0,0.231288]
[1735223128235,0.358253,96037.0,96022.0,0.023]
[1735223128481,0.358253,96037.0,96024.0,0.023]
[1735223128749,0.15,96037.0,96026.0,0.023]
[1735223128965,0.15,96037.0,96027.0,0.10502754]
[1735223129535,0.14655146,96038.0,96029.0,0.20827]
[1735223129740,0.14655146,96038.0,96030.0,0.12802749]
[1735223129946,0.14655146,96038.0,96030.0,0.12698632]
[1735223130348,0.13255146,96038.0,96030.0,0.12698632]
[1735223130551,0.005,96037.0,96030.0,0.12698632]
[1735223130751,0.005,96037.0,96031.0,0.00104118]
[1735223130987,0.008,96037.0,96033.0,0.023]
[1735223131223,0.008,96037.0,96034.0,0.10398632]
[1735223131459,0.12955146,96038.0,96034.0,0.10398632]
[1735223131786,0.12955146,96038.0,96034.0,0.1050275]
[1735223131991,0.12955146,96038.0,96034.0,0.10398632]
[1735223133429,0.12955146,96038.0,96034.0,0.10598632]
[1735223134873,5.146e-05,96038.0,96035.0,0.32729818]